[Event "*** SCC Grand Prix: Titled Tuesday Blitz"]
[Site "Chess.com"]
[Date "2020.08.25"]
[Round "1"]
[White "Witik"]
[Black "Colombiano07"]
[Result "1-0"]
[WhiteElo "2665"]
[BlackElo "2327"]
[TimeControl "180+1"]
[EndTime "10:07:56 PDT"]
[Termination "Witik won on time"]

1. d4 {[%clk 0:02:57.5]} 1... d5 {[%clk 0:02:58.7]} 2. Bf4 {[%clk 0:02:55.7]}
2... Nf6 {[%clk 0:02:58.1]} 3. e3 {[%clk 0:02:51.8]} 3... e6 {[%clk 0:02:58.7]}
4. Nd2 {[%clk 0:02:51.1]} 4... Bd6 {[%clk 0:02:59.4]} 5. Bd3 {[%clk 0:02:49.4]}
5... O-O {[%clk 0:02:59.7]} 6. c3 {[%clk 0:02:49.1]} 6... c5 {[%clk 0:02:59.7]}
7. Bxd6 {[%clk 0:02:48.9]} 7... Qxd6 {[%clk 0:02:59.8]} 8. f4 {[%clk 0:02:49.5]}
8... b6 {[%clk 0:02:58.8]} 9. Qe2 {[%clk 0:02:48.3]} 9... a5 {[%clk 0:02:58.6]}
10. Ngf3 {[%clk 0:02:46.1]} 10... Ba6 {[%clk 0:02:58.5]} 11. Bxa6 {[%clk
0:02:33.5]} 11... Nxa6 {[%clk 0:02:59.4]} 12. Ne5 {[%clk 0:02:33.6]} 12... b5
{[%clk 0:02:54.9]} 13. O-O {[%clk 0:02:26.1]} 13... b4 {[%clk 0:02:54.4]} 14. f5
{[%clk 0:02:14.7]} 14... Nc7 {[%clk 0:02:48.4]} 15. Rac1 {[%clk 0:02:01.9]}
15... a4 {[%clk 0:02:47.8]} 16. cxb4 {[%clk 0:01:59.9]} 16... cxb4 {[%clk
0:02:41.3]} 17. Rc6 {[%clk 0:01:57.9]} 17... Qd8 {[%clk 0:02:40.6]} 18. Rfc1
{[%clk 0:01:51]} 18... Ra7 {[%clk 0:02:25]} 19. Qd3 {[%clk 0:01:21.7]} 19... Nd7
{[%clk 0:01:51.3]} 20. Ndf3 {[%clk 0:01:13.1]} 20... Nxe5 {[%clk 0:01:36.9]} 21.
Nxe5 {[%clk 0:01:12.8]} 21... exf5 {[%clk 0:01:35.5]} 22. Qxf5 {[%clk
0:01:12.3]} 22... Ne6 {[%clk 0:01:35.7]} 23. Nxf7 {[%clk 0:01:00.6]} 23... Nxd4
{[%clk 0:01:16.5]} 24. exd4 {[%clk 0:00:29.5]} 24... Raxf7 {[%clk 0:01:14]} 25.
Qe6 {[%clk 0:00:29.7]} 25... Qd7 {[%clk 0:00:41]} 26. Qxd7 {[%clk 0:00:27.6]}
26... Rxd7 {[%clk 0:00:41.9]} 27. Rc7 {[%clk 0:00:22.8]} 27... Rff7 {[%clk
0:00:24.7]} 28. Rc8+ {[%clk 0:00:20.6]} 28... Rf8 {[%clk 0:00:24.6]} 29. Rxf8+
{[%clk 0:00:21.2]} 29... Kxf8 {[%clk 0:00:25.5]} 30. Rc5 {[%clk 0:00:21.4]}
30... a3 {[%clk 0:00:19.1]} 31. bxa3 {[%clk 0:00:18.9]} 31... bxa3 {[%clk
0:00:20]} 32. Ra5 {[%clk 0:00:19.5]} 32... Rb7 {[%clk 0:00:18.5]} 33. Rxa3
{[%clk 0:00:19.5]} 33... Rb2 {[%clk 0:00:18.7]} 34. h4 {[%clk 0:00:17.8]} 34...
h5 {[%clk 0:00:18.2]} 35. Ra7 {[%clk 0:00:17.6]} 35... Kg8 {[%clk 0:00:17.3]}
36. Rd7 {[%clk 0:00:16.1]} 36... Rxa2 {[%clk 0:00:16.9]} 37. Rxd5 {[%clk
0:00:16.6]} 37... g6 {[%clk 0:00:17]} 38. Rd7 {[%clk 0:00:17.2]} 38... Rd2
{[%clk 0:00:16.3]} 39. Kh2 {[%clk 0:00:17.3]} 39... Kf8 {[%clk 0:00:16.9]} 40.
Kg3 {[%clk 0:00:17.3]} 40... Ke8 {[%clk 0:00:16.7]} 41. Rg7 {[%clk 0:00:16.9]}
41... Rxd4 {[%clk 0:00:15.4]} 42. Rxg6 {[%clk 0:00:17.2]} 42... Rd5 {[%clk
0:00:07.5]} 43. Rg5 {[%clk 0:00:17.3]} 43... Rd4 {[%clk 0:00:02.3]} 44. Rxh5
{[%clk 0:00:17.3]} 44... Kf7 {[%clk 0:00:03.2]} 45. Rg5 {[%clk 0:00:17.6]} 45...
Kf6 {[%clk 0:00:03.4]} 46. Kh3 {[%clk 0:00:17.5]} 46... Rd1 {[%clk 0:00:03.1]}
47. g3 {[%clk 0:00:17.8]} 47... Rd4 {[%clk 0:00:02.7]} 48. Ra5 {[%clk
0:00:16.6]} 48... Rb4 {[%clk 0:00:02.5]} 49. Ra6+ {[%clk 0:00:16]} 49... Kf5
{[%clk 0:00:02.5]} 50. Ra5+ {[%clk 0:00:16]} 50... Kg6 {[%clk 0:00:02.8]} 51.
h5+ {[%clk 0:00:14.8]} 1-0

[Event "*** SCC Grand Prix: Titled Tuesday Blitz"]
[Site "Chess.com"]
[Date "2020.08.25"]
[Round "1"]
[White "tptagain"]
[Black "ljuks68"]
[Result "1-0"]
[WhiteElo "2876"]
[BlackElo "2429"]
[TimeControl "180+1"]
[EndTime "10:07:57 PDT"]
[Termination "tptagain won by checkmate"]

1. Nf3 {[%clk 0:03:00.9]} 1... d5 {[%clk 0:02:56]} 2. b3 {[%clk 0:03:00.7]} 2...
c5 {[%clk 0:02:53.1]} 3. e3 {[%clk 0:03:00.5]} 3... Nc6 {[%clk 0:02:53.4]} 4.
Bb5 {[%clk 0:03:00.2]} 4... Bd7 {[%clk 0:02:52.1]} 5. O-O {[%clk 0:02:58.7]}
5... e6 {[%clk 0:02:47.8]} 6. Bb2 {[%clk 0:02:56.2]} 6... Nf6 {[%clk 0:02:47.5]}
7. c4 {[%clk 0:02:55.7]} 7... a6 {[%clk 0:02:34.9]} 8. Bxc6 {[%clk 0:02:55.4]}
8... bxc6 {[%clk 0:02:33.8]} 9. Nc3 {[%clk 0:02:46.8]} 9... Bd6 {[%clk
0:02:33.1]} 10. Na4 {[%clk 0:02:42]} 10... Qe7 {[%clk 0:02:31.3]} 11. d3 {[%clk
0:02:35.1]} 11... e5 {[%clk 0:02:26.5]} 12. Qc2 {[%clk 0:02:13.5]} 12... O-O
{[%clk 0:02:11]} 13. e4 {[%clk 0:02:09]} 13... Bg4 {[%clk 0:01:59]} 14. Ne1
{[%clk 0:02:00.2]} 14... Rad8 {[%clk 0:01:51.7]} 15. f3 {[%clk 0:01:53.9]} 15...
Be6 {[%clk 0:01:42.6]} 16. g3 {[%clk 0:01:46.3]} 16... Nd7 {[%clk 0:01:40.8]}
17. Ng2 {[%clk 0:01:44.4]} 17... f5 {[%clk 0:01:38.6]} 18. Rae1 {[%clk
0:01:39.9]} 18... d4 {[%clk 0:01:14.4]} 19. exf5 {[%clk 0:01:27.3]} 19... Bxf5
{[%clk 0:01:12.9]} 20. Bc1 {[%clk 0:01:20.6]} 20... Rde8 {[%clk 0:00:51]} 21.
Qe2 {[%clk 0:01:19.8]} 21... Qf6 {[%clk 0:00:48.5]} 22. Nb2 {[%clk 0:01:19.2]}
22... Be7 {[%clk 0:00:45.6]} 23. Rf2 {[%clk 0:01:17.2]} 23... Qg6 {[%clk
0:00:45.2]} 24. Qd2 {[%clk 0:01:13.3]} 24... h6 {[%clk 0:00:35.4]} 25. Rd1
{[%clk 0:01:06.7]} 25... Bg5 {[%clk 0:00:33]} 26. Qe2 {[%clk 0:01:02.5]} 26...
Bf6 {[%clk 0:00:30]} 27. Qe1 {[%clk 0:01:01.7]} 27... h5 {[%clk 0:00:28.7]} 28.
Kh1 {[%clk 0:00:46.8]} 28... Bh3 {[%clk 0:00:23.7]} 29. Qa5 {[%clk 0:00:41.8]}
29... h4 {[%clk 0:00:22.1]} 30. g4 {[%clk 0:00:36.2]} 30... Bxg4 {[%clk
0:00:17.2]} 31. fxg4 {[%clk 0:00:35.7]} 31... Qxg4 {[%clk 0:00:17.6]} 32. Rg1
{[%clk 0:00:30]} 32... e4 {[%clk 0:00:14.7]} 33. Nf4 {[%clk 0:00:16.1]} 33...
Qf5 {[%clk 0:00:12]} 34. Rfg2 {[%clk 0:00:16.4]} 34... e3 {[%clk 0:00:11]} 35.
Ng6 {[%clk 0:00:14.5]} 35... Rf7 {[%clk 0:00:09.9]} 36. Qe1 {[%clk 0:00:14.1]}
36... Ne5 {[%clk 0:00:08.2]} 37. Qe2 {[%clk 0:00:13.9]} 37... Nxg6 {[%clk
0:00:07.3]} 38. Rxg6 {[%clk 0:00:14.8]} 38... Be5 {[%clk 0:00:06.5]} 39. Na4
{[%clk 0:00:13.8]} 39... Qf2 {[%clk 0:00:06]} 40. R6g2 {[%clk 0:00:12.9]} 40...
Qf5 {[%clk 0:00:04.1]} 41. Nxc5 {[%clk 0:00:12.7]} 41... Bxh2 {[%clk 0:00:03.6]}
42. Rxh2 {[%clk 0:00:12.2]} 42... Qxc5 {[%clk 0:00:04.1]} 43. Rxh4 {[%clk
0:00:10.9]} 43... Rf2 {[%clk 0:00:03]} 44. Qg4 {[%clk 0:00:11]} 44... Qe7 {[%clk
0:00:03.2]} 45. Rg2 {[%clk 0:00:09.4]} 45... Rf1+ {[%clk 0:00:02.5]} 46. Rg1
{[%clk 0:00:09.4]} 46... Rf2 {[%clk 0:00:02.9]} 47. Rh2 {[%clk 0:00:09]} 47...
Rxh2+ {[%clk 0:00:02.5]} 48. Kxh2 {[%clk 0:00:09.9]} 48... e2 {[%clk 0:00:02.9]}
49. Bd2 {[%clk 0:00:10.2]} 49... Qe6 {[%clk 0:00:02.3]} 50. Qxg7# {[%clk
0:00:10]} 1-0

[Event "*** SCC Grand Prix: Titled Tuesday Blitz"]
[Site "Chess.com"]
[Date "2020.08.25"]
[Round "1"]
[White "Alembong"]
[Black "anskam"]
[Result "1-0"]
[WhiteElo "2453"]
[BlackElo "1642"]
[TimeControl "180+1"]
[EndTime "10:07:59 PDT"]
[Termination "Alembong won on time"]

1. d4 {[%clk 0:02:57]} 1... Nf6 {[%clk 0:02:58.7]} 2. Nf3 {[%clk 0:02:56.8]}
2... g6 {[%clk 0:02:58.4]} 3. g3 {[%clk 0:02:56.3]} 3... Bg7 {[%clk 0:02:58.1]}
4. Bg2 {[%clk 0:02:57]} 4... d5 {[%clk 0:02:57.6]} 5. O-O {[%clk 0:02:57]} 5...
c6 {[%clk 0:02:57.2]} 6. b3 {[%clk 0:02:56.5]} 6... O-O {[%clk 0:02:56.6]} 7. c4
{[%clk 0:02:56.4]} 7... e6 {[%clk 0:02:55.6]} 8. Bb2 {[%clk 0:02:51.8]} 8... Re8
{[%clk 0:02:54.2]} 9. e3 {[%clk 0:02:50.5]} 9... Nbd7 {[%clk 0:02:52.8]} 10. Qe2
{[%clk 0:02:50.2]} 10... dxc4 {[%clk 0:02:49]} 11. bxc4 {[%clk 0:02:49.2]} 11...
Nh5 {[%clk 0:02:45.4]} 12. e4 {[%clk 0:02:40.3]} 12... e5 {[%clk 0:02:44.3]} 13.
d5 {[%clk 0:02:39.5]} 13... cxd5 {[%clk 0:02:41]} 14. cxd5 {[%clk 0:02:38.5]}
14... Nb6 {[%clk 0:02:40.7]} 15. Nc3 {[%clk 0:02:30.2]} 15... Bg4 {[%clk
0:02:37.9]} 16. h3 {[%clk 0:02:29.2]} 16... Bxf3 {[%clk 0:02:36.5]} 17. Bxf3
{[%clk 0:02:29.1]} 17... Nf6 {[%clk 0:02:35.5]} 18. Rac1 {[%clk 0:02:23.6]}
18... Rc8 {[%clk 0:01:17]} 19. Nb1 {[%clk 0:02:08.4]} 19... a6 {[%clk
0:01:15.8]} 20. Rxc8 {[%clk 0:01:56.6]} 20... Qxc8 {[%clk 0:01:14.4]} 21. Rc1
{[%clk 0:01:54.2]} 21... Qd7 {[%clk 0:01:10.8]} 22. Bg2 {[%clk 0:01:51.9]} 22...
Rc8 {[%clk 0:01:08.7]} 23. Rxc8+ {[%clk 0:01:37.7]} 23... Qxc8 {[%clk
0:01:07.7]} 24. Bf1 {[%clk 0:01:38.1]} 24... Nfd7 {[%clk 0:01:04]} 25. h4 {[%clk
0:01:32.4]} 25... Qc5 {[%clk 0:01:02.3]} 26. Bh3 {[%clk 0:01:19.2]} 26... Nf8
{[%clk 0:00:48.9]} 27. Ba3 {[%clk 0:01:04.7]} 27... Qa5 {[%clk 0:00:42.4]} 28.
Qd2 {[%clk 0:00:59.6]} 28... Qxd2 {[%clk 0:00:40.9]} 29. Nxd2 {[%clk 0:01:00.5]}
29... Nfd7 {[%clk 0:00:38.3]} 30. Nb3 {[%clk 0:00:55]} 30... Bf8 {[%clk
0:00:36.8]} 31. Bxf8 {[%clk 0:00:52.5]} 31... Kxf8 {[%clk 0:00:36.1]} 32. Na5
{[%clk 0:00:52.2]} 32... Nc5 {[%clk 0:00:32.7]} 33. f3 {[%clk 0:00:50.7]} 33...
Ke8 {[%clk 0:00:30.2]} 34. Kf2 {[%clk 0:00:50.7]} 34... h5 {[%clk 0:00:29.6]}
35. Ke3 {[%clk 0:00:50.6]} 35... Kd8 {[%clk 0:00:26.9]} 36. f4 {[%clk
0:00:49.1]} 36... exf4+ {[%clk 0:00:25.9]} 37. gxf4 {[%clk 0:00:49]} 37... Kc7
{[%clk 0:00:25.5]} 38. Kd4 {[%clk 0:00:48.6]} 38... Ncd7 {[%clk 0:00:24.6]} 39.
e5 {[%clk 0:00:47.8]} 39... Nf8 {[%clk 0:00:20.2]} 40. f5 {[%clk 0:00:37.5]}
40... gxf5 {[%clk 0:00:18]} 41. Bxf5 {[%clk 0:00:38.4]} 41... Ng6 {[%clk
0:00:17.5]} 42. d6+ {[%clk 0:00:34.2]} 42... Kb8 {[%clk 0:00:13.3]} 43. Bxg6
{[%clk 0:00:30.7]} 43... fxg6 {[%clk 0:00:12.6]} 44. e6 {[%clk 0:00:31.2]} 44...
Kc8 {[%clk 0:00:11.4]} 45. Nxb7 {[%clk 0:00:26.5]} 45... Kxb7 {[%clk 0:00:10.8]}
46. e7 {[%clk 0:00:26.1]} 46... Nc8 {[%clk 0:00:09.3]} 47. e8=Q {[%clk
0:00:23.4]} 47... Nxd6 {[%clk 0:00:08.9]} 48. Qd7+ {[%clk 0:00:23.4]} 48... Kb6
{[%clk 0:00:04.2]} 49. Qxd6+ {[%clk 0:00:23.4]} 49... Kb5 {[%clk 0:00:03.6]} 50.
Qf6 {[%clk 0:00:24.3]} 50... Ka4 {[%clk 0:00:02.9]} 51. Qxg6 {[%clk 0:00:25.2]}
51... Ka3 {[%clk 0:00:02.7]} 52. Qxh5 {[%clk 0:00:26.1]} 52... Kxa2 {[%clk
0:00:02.3]} 53. Qa5+ {[%clk 0:00:26.6]} 1-0

[Event "*** SCC Grand Prix: Titled Tuesday Blitz"]
[Site "Chess.com"]
[Date "2020.08.25"]
[Round "1"]
[White "Caterpiller35"]
[Black "Paladin61"]
[Result "0-1"]
[WhiteElo "2340"]
[BlackElo "2672"]
[TimeControl "180+1"]
[EndTime "10:08:08 PDT"]
[Termination "Paladin61 won by checkmate"]

1. d4 {[%clk 0:02:58.3]} 1... Nf6 {[%clk 0:02:58.9]} 2. Bg5 {[%clk 0:02:58]}
2... c5 {[%clk 0:02:57.3]} 3. Bxf6 {[%clk 0:02:57.4]} 3... gxf6 {[%clk
0:02:56.1]} 4. d5 {[%clk 0:02:57.6]} 4... f5 {[%clk 0:02:54.9]} 5. c4 {[%clk
0:02:56]} 5... d6 {[%clk 0:02:53.3]} 6. Nc3 {[%clk 0:02:55.9]} 6... Bg7 {[%clk
0:02:47.5]} 7. Qc2 {[%clk 0:02:55.6]} 7... e6 {[%clk 0:02:35.1]} 8. e3 {[%clk
0:02:48.6]} 8... Nd7 {[%clk 0:02:34]} 9. Nge2 {[%clk 0:02:45.2]} 9... Nf6 {[%clk
0:02:31.7]} 10. dxe6 {[%clk 0:02:38.1]} 10... fxe6 {[%clk 0:02:31.3]} 11. g3
{[%clk 0:02:38.1]} 11... O-O {[%clk 0:02:19.9]} 12. Bg2 {[%clk 0:02:37.6]} 12...
Qe7 {[%clk 0:02:15.7]} 13. O-O {[%clk 0:02:37]} 13... Rb8 {[%clk 0:02:10.7]} 14.
Rad1 {[%clk 0:02:36.1]} 14... a6 {[%clk 0:02:09]} 15. a4 {[%clk 0:02:29.7]}
15... Rd8 {[%clk 0:02:06.7]} 16. Rd2 {[%clk 0:02:27.9]} 16... Bd7 {[%clk
0:02:01.1]} 17. Rfd1 {[%clk 0:02:25.3]} 17... Be8 {[%clk 0:02:00.8]} 18. e4
{[%clk 0:02:19.1]} 18... Bg6 {[%clk 0:01:39.1]} 19. Nf4 {[%clk 0:02:18.1]} 19...
Kh8 {[%clk 0:01:38.4]} 20. Nxg6+ {[%clk 0:02:11.5]} 20... hxg6 {[%clk
0:01:37.8]} 21. exf5 {[%clk 0:02:10.7]} 21... gxf5 {[%clk 0:01:37.1]} 22. Re2
{[%clk 0:02:09]} 22... Qf7 {[%clk 0:01:34.2]} 23. Rde1 {[%clk 0:02:07]} 23...
Re8 {[%clk 0:01:32.6]} 24. Qd3 {[%clk 0:01:59.9]} 24... Rbd8 {[%clk 0:01:29.2]}
25. Qf3 {[%clk 0:01:58]} 25... Rd7 {[%clk 0:01:23.5]} 26. Qf4 {[%clk 0:01:55.6]}
26... Ree7 {[%clk 0:01:01.5]} 27. Rd1 {[%clk 0:01:53.2]} 27... Ne8 {[%clk
0:01:01.2]} 28. Rd3 {[%clk 0:01:43.6]} 28... Qh5 {[%clk 0:00:58.4]} 29. Rde3
{[%clk 0:01:30]} 29... Bh6 {[%clk 0:00:55.1]} 30. Qf3 {[%clk 0:01:24.9]} 30...
Qxf3 {[%clk 0:00:45.4]} 31. Rxf3 {[%clk 0:01:25]} 31... Nf6 {[%clk 0:00:43.4]}
32. Rd3 {[%clk 0:01:18.9]} 32... Kg7 {[%clk 0:00:42.3]} 33. Re1 {[%clk
0:01:09.4]} 33... Kf7 {[%clk 0:00:37.4]} 34. Red1 {[%clk 0:01:08.8]} 34... Ne8
{[%clk 0:00:37.1]} 35. Bf3 {[%clk 0:01:09.1]} 35... Kg6 {[%clk 0:00:32.6]} 36.
a5 {[%clk 0:01:05]} 36... Bg7 {[%clk 0:00:26.5]} 37. Na4 {[%clk 0:01:04.2]}
37... Bd4 {[%clk 0:00:26.3]} 38. b4 {[%clk 0:01:00.6]} 38... Rc7 {[%clk
0:00:23.7]} 39. Kg2 {[%clk 0:00:55.5]} 39... Nf6 {[%clk 0:00:23]} 40. Rxd4
{[%clk 0:00:48.9]} 40... cxd4 {[%clk 0:00:22]} 41. Rxd4 {[%clk 0:00:49.8]} 41...
e5 {[%clk 0:00:13.7]} 42. Rxd6 {[%clk 0:00:41.3]} 42... Rxc4 {[%clk 0:00:13.9]}
43. Rb6 {[%clk 0:00:35.5]} 43... e4 {[%clk 0:00:13.2]} 44. Be2 {[%clk
0:00:34.8]} 44... Rc2 {[%clk 0:00:12.8]} 45. Bd1 {[%clk 0:00:28.2]} 45... Rd2
{[%clk 0:00:12.4]} 46. Nc3 {[%clk 0:00:27.1]} 46... e3 {[%clk 0:00:12.3]} 47.
Kf3 {[%clk 0:00:22.2]} 47... Rxd1 {[%clk 0:00:08.9]} 48. fxe3 {[%clk 0:00:09.3]}
48... Rd3 {[%clk 0:00:08]} 49. Na4 {[%clk 0:00:06]} 49... Rdxe3+ {[%clk
0:00:08]} 50. Kg2 {[%clk 0:00:05.4]} 50... Re2+ {[%clk 0:00:08.3]} 51. Kh3
{[%clk 0:00:05.7]} 51... Rh7# {[%clk 0:00:08.3]} 0-1

[Event "*** SCC Grand Prix: Titled Tuesday Blitz"]
[Site "Chess.com"]
[Date "2020.08.25"]
[Round "1"]
[White "vvg2"]
[Black "johnathan113"]
[Result "1-0"]
[WhiteElo "2288"]
[BlackElo "2589"]
[TimeControl "180+1"]
[EndTime "10:08:08 PDT"]
[Termination "vvg2 won on time"]

1. d4 {[%clk 0:03:00.9]} 1... Nf6 {[%clk 0:02:53.8]} 2. c4 {[%clk 0:02:59.9]}
2... g6 {[%clk 0:02:54.3]} 3. Nc3 {[%clk 0:02:58.6]} 3... Bg7 {[%clk 0:02:54.8]}
4. e4 {[%clk 0:02:58.3]} 4... O-O {[%clk 0:02:55.4]} 5. Nf3 {[%clk 0:02:58.1]}
5... d6 {[%clk 0:02:55.9]} 6. Be2 {[%clk 0:02:58.3]} 6... e5 {[%clk 0:02:56]} 7.
O-O {[%clk 0:02:58.5]} 7... Nbd7 {[%clk 0:02:56.4]} 8. Be3 {[%clk 0:02:57.2]}
8... c6 {[%clk 0:02:56.3]} 9. d5 {[%clk 0:02:53]} 9... c5 {[%clk 0:02:56]} 10.
Ne1 {[%clk 0:02:53]} 10... Kh8 {[%clk 0:02:54.8]} 11. Nd3 {[%clk 0:02:52.8]}
11... Ng8 {[%clk 0:02:54.9]} 12. g4 {[%clk 0:02:52.8]} 12... Bh6 {[%clk
0:02:52.2]} 13. f4 {[%clk 0:02:45.9]} 13... exf4 {[%clk 0:02:49.9]} 14. Nxf4
{[%clk 0:02:42.7]} 14... Ne5 {[%clk 0:02:48.6]} 15. Qd2 {[%clk 0:02:29.3]} 15...
Qh4 {[%clk 0:02:27.2]} 16. Ng2 {[%clk 0:02:18.8]} 16... Bxe3+ {[%clk 0:02:13.7]}
17. Qxe3 {[%clk 0:02:17]} 17... Qe7 {[%clk 0:02:10.3]} 18. h3 {[%clk 0:02:12.6]}
18... Bd7 {[%clk 0:02:07.7]} 19. Rf2 {[%clk 0:02:11.7]} 19... f6 {[%clk
0:02:04.5]} 20. Raf1 {[%clk 0:02:11.2]} 20... Kg7 {[%clk 0:02:05.4]} 21. Qg3
{[%clk 0:02:07.6]} 21... Nh6 {[%clk 0:01:59.6]} 22. Ne3 {[%clk 0:02:06.9]} 22...
a6 {[%clk 0:01:57.2]} 23. a4 {[%clk 0:02:02.3]} 23... Kh8 {[%clk 0:01:41.6]} 24.
h4 {[%clk 0:02:01.7]} 24... Ng8 {[%clk 0:01:40.8]} 25. Kg2 {[%clk 0:01:50.6]}
25... Qe8 {[%clk 0:01:34.3]} 26. g5 {[%clk 0:01:46.3]} 26... Qe7 {[%clk
0:01:25.4]} 27. gxf6 {[%clk 0:01:40.1]} 27... Rxf6 {[%clk 0:01:26.3]} 28. Ng4
{[%clk 0:01:29.7]} 28... Bxg4 {[%clk 0:01:22.5]} 29. Bxg4 {[%clk 0:01:30.6]}
29... Raf8 {[%clk 0:01:06.9]} 30. Be6 {[%clk 0:01:29.6]} 30... Nxc4 {[%clk
0:01:00.9]} 31. Rxf6 {[%clk 0:01:21.9]} 31... Rxf6 {[%clk 0:00:57.3]} 32. Rxf6
{[%clk 0:01:17.9]} 32... Qxf6 {[%clk 0:00:58.2]} 33. Qg5 {[%clk 0:01:13.1]}
33... Nxb2 {[%clk 0:00:51.3]} 34. e5 {[%clk 0:00:54.8]} 34... Qxg5+ {[%clk
0:00:26.4]} 35. hxg5 {[%clk 0:00:55.7]} 35... Nc4 {[%clk 0:00:25.2]} 36. Ne4
{[%clk 0:00:47.8]} 36... Nxe5 {[%clk 0:00:24.6]} 37. Nxd6 {[%clk 0:00:47.7]}
37... c4 {[%clk 0:00:19.3]} 38. Ne4 {[%clk 0:00:43.6]} 38... Nd3 {[%clk
0:00:19.3]} 39. Kg3 {[%clk 0:00:39.7]} 39... Ne7 {[%clk 0:00:19.6]} 40. d6
{[%clk 0:00:39.6]} 40... Nc6 {[%clk 0:00:20.1]} 41. Bd5 {[%clk 0:00:35.5]} 41...
Nde5 {[%clk 0:00:16.8]} 42. Nf6 {[%clk 0:00:29.7]} 42... c3 {[%clk 0:00:14.7]}
43. Bb3 {[%clk 0:00:29.2]} 43... Kg7 {[%clk 0:00:10.7]} 44. Kf4 {[%clk 0:00:28]}
44... h6 {[%clk 0:00:09.5]} 45. Ne8+ {[%clk 0:00:25.9]} 45... Kh7 {[%clk
0:00:06.2]} 46. Nf6+ {[%clk 0:00:25.3]} 46... Kg7 {[%clk 0:00:06.8]} 47. Ne8+
{[%clk 0:00:24.9]} 47... Kf8 {[%clk 0:00:05.4]} 48. gxh6 {[%clk 0:00:24.1]}
48... c2 {[%clk 0:00:05.2]} 49. Bxc2 {[%clk 0:00:17.6]} 49... g5+ {[%clk
0:00:03.6]} 50. Kg3 {[%clk 0:00:16]} 50... Kxe8 {[%clk 0:00:02.9]} 51. h7 {[%clk
0:00:16.3]} 51... Nf7 {[%clk 0:00:02.4]} 52. Bg6 {[%clk 0:00:16.5]} 1-0

[Event "*** SCC Grand Prix: Titled Tuesday Blitz"]
[Site "Chess.com"]
[Date "2020.08.25"]
[Round "1"]
[White "Shubinkirill2003"]
[Black "Playgood28"]
[Result "1/2-1/2"]
[WhiteElo "2646"]
[BlackElo "2329"]
[TimeControl "180+1"]
[EndTime "10:08:09 PDT"]
[Termination "Game drawn by agreement"]

1. e4 {[%clk 0:03:00.9]} 1... e5 {[%clk 0:02:59.4]} 2. Nf3 {[%clk 0:03:00.7]}
2... d6 {[%clk 0:02:59.2]} 3. d4 {[%clk 0:02:59.3]} 3... exd4 {[%clk 0:03:00.1]}
4. Nxd4 {[%clk 0:02:58.3]} 4... Nf6 {[%clk 0:03:00.5]} 5. Nc3 {[%clk 0:02:57.2]}
5... Be7 {[%clk 0:03:00.9]} 6. Be2 {[%clk 0:02:56.8]} 6... O-O {[%clk
0:03:00.6]} 7. O-O {[%clk 0:02:56.7]} 7... c5 {[%clk 0:03:00.5]} 8. Nf5 {[%clk
0:02:51.3]} 8... Bxf5 {[%clk 0:02:58]} 9. exf5 {[%clk 0:02:51.1]} 9... Nc6
{[%clk 0:02:55.2]} 10. Bf3 {[%clk 0:02:50.5]} 10... Qd7 {[%clk 0:02:53]} 11. Re1
{[%clk 0:02:41.3]} 11... Rfe8 {[%clk 0:02:49.2]} 12. g4 {[%clk 0:02:32.5]} 12...
h6 {[%clk 0:02:48.1]} 13. Bf4 {[%clk 0:02:29.3]} 13... Nd4 {[%clk 0:02:38.8]}
14. Bg2 {[%clk 0:02:29]} 14... d5 {[%clk 0:02:35.1]} 15. Be5 {[%clk 0:02:23.7]}
15... Bd8 {[%clk 0:02:15.7]} 16. Bxd4 {[%clk 0:02:13.1]} 16... Rxe1+ {[%clk
0:02:13.3]} 17. Qxe1 {[%clk 0:02:10]} 17... cxd4 {[%clk 0:02:12.8]} 18. Ne2
{[%clk 0:02:06.9]} 18... d3 {[%clk 0:02:06.4]} 19. cxd3 {[%clk 0:02:03.9]} 19...
Bc7 {[%clk 0:02:05.8]} 20. h3 {[%clk 0:02:03]} 20... Re8 {[%clk 0:02:02.5]} 21.
Qd2 {[%clk 0:01:59.2]} 21... Qd6 {[%clk 0:01:58.6]} 22. Nd4 {[%clk 0:01:45.7]}
22... Qh2+ {[%clk 0:01:39.5]} 23. Kf1 {[%clk 0:01:45.1]} 23... Bb6 {[%clk
0:01:22.6]} 24. Nf3 {[%clk 0:01:42.9]} 24... Qd6 {[%clk 0:01:21.9]} 25. Re1
{[%clk 0:01:40.6]} 25... Rxe1+ {[%clk 0:01:20.2]} 26. Qxe1 {[%clk 0:01:41.5]}
26... Kf8 {[%clk 0:01:18.4]} 27. Qd2 {[%clk 0:01:33.9]} 27... a6 {[%clk
0:01:12.8]} 28. Ne1 {[%clk 0:01:23.9]} 28... Qc5 {[%clk 0:01:09.2]} 29. Nc2
{[%clk 0:01:21.5]} 29... Qb5 {[%clk 0:01:01.3]} 30. Qb4+ {[%clk 0:01:20.5]}
30... Qxb4 {[%clk 0:00:59.2]} 31. Nxb4 {[%clk 0:01:21.4]} 31... Bd4 {[%clk
0:00:52.7]} 32. b3 {[%clk 0:01:17.8]} 32... Ke7 {[%clk 0:00:52.2]} 33. Nxd5+
{[%clk 0:01:16]} 33... Nxd5 {[%clk 0:00:51.9]} 34. Bxd5 {[%clk 0:01:14.2]} 34...
b6 {[%clk 0:00:51.7]} 35. Ke2 {[%clk 0:01:10.4]} 35... f6 {[%clk 0:00:50.9]} 36.
f4 {[%clk 0:01:09.5]} 36... Kd6 {[%clk 0:00:50]} 37. Bb7 {[%clk 0:01:08.8]}
37... a5 {[%clk 0:00:49]} 38. a4 {[%clk 0:01:06]} 38... Bb2 {[%clk 0:00:48.4]}
39. Kf3 {[%clk 0:01:05]} 39... Bc1 {[%clk 0:00:48]} 40. Ke4 {[%clk 0:01:04.7]}
40... Bd2 {[%clk 0:00:47]} 41. Bd5 {[%clk 0:00:57]} 41... Bc1 {[%clk 0:00:46.5]}
42. Bc4 {[%clk 0:00:56.1]} 42... Bd2 {[%clk 0:00:46.1]} 43. Kf3 {[%clk
0:00:54.2]} 43... Bc1 {[%clk 0:00:45.7]} 44. Kg3 {[%clk 0:00:53.9]} 44... Bd2
{[%clk 0:00:45.3]} 45. Kh4 {[%clk 0:00:41]} 45... Bxf4 {[%clk 0:00:44.4]} 46.
Kh5 {[%clk 0:00:41.2]} 46... Ke7 {[%clk 0:00:44.6]} 47. Kg6 {[%clk 0:00:41.3]}
47... Kf8 {[%clk 0:00:44.4]} 48. d4 {[%clk 0:00:39.1]} 48... Be3 {[%clk
0:00:42.4]} 49. d5 {[%clk 0:00:38.3]} 49... Bc5 {[%clk 0:00:42]} 50. h4 {[%clk
0:00:37.7]} 50... Bd6 {[%clk 0:00:40.5]} 51. Bb5 {[%clk 0:00:34.4]} 51... Bf4
{[%clk 0:00:37.4]} 52. Bd7 {[%clk 0:00:31.7]} 52... Bd6 {[%clk 0:00:36.3]} 53.
Be6 {[%clk 0:00:30.8]} 53... Bf4 {[%clk 0:00:35.5]} 54. Bc8 {[%clk 0:00:24.2]}
54... Bd6 {[%clk 0:00:34.6]} 55. Bd7 {[%clk 0:00:23.9]} 55... Bf4 {[%clk
0:00:33.2]} 56. Be6 {[%clk 0:00:23.9]} 56... Bd6 {[%clk 0:00:32.5]} 57. g5
{[%clk 0:00:23.8]} 57... hxg5 {[%clk 0:00:31.1]} 58. hxg5 {[%clk 0:00:24.7]}
58... fxg5 {[%clk 0:00:30]} 59. Kxg5 {[%clk 0:00:25.2]} 59... Be5 {[%clk
0:00:29.1]} 60. Bd7 {[%clk 0:00:23]} 60... Ke7 {[%clk 0:00:28.4]} 61. Bb5 {[%clk
0:00:22.9]} 61... Kd6 {[%clk 0:00:27.6]} 62. Bc4 {[%clk 0:00:22.8]} 62... Bf6+
{[%clk 0:00:26.9]} 63. Kg6 {[%clk 0:00:22.9]} 63... Bd4 {[%clk 0:00:27.2]} 64.
Kf7 {[%clk 0:00:22.8]} 64... Bf6 {[%clk 0:00:26.7]} 65. Kg6 {[%clk 0:00:22.7]}
65... Bd4 {[%clk 0:00:26.1]} 66. Kg5 {[%clk 0:00:22.7]} 66... Bf6+ {[%clk
0:00:25.6]} 67. Kf4 {[%clk 0:00:22.4]} 67... Bd4 {[%clk 0:00:26]} 68. Ke4 {[%clk
0:00:21.5]} 1/2-1/2